fUSD/lending_fUSD_20251217
["ID","MTS","AMOUNT","RATE_DAILY","PERIOD"]
[398880658,1765961440935,-3063.0523038,0.00016948,2]
[398880659,1765961440944,-48160.1445377,0.00016948,2]
[398880660,1765961440952,-14394.9479478,0.00016948,2]
[398880661,1765961440961,-455360.6635212,0.00016948,2]
[398880662,1765961440970,-8014.5109255,0.00016948,2]
[398880663,1765961440979,-151.0,0.00016948,2]
[398880664,1765961440987,-265.347186,0.00016948,2]
[398880665,1765961440996,-151.0,0.00016948,2]
[398880666,1765961441008,-151.0,0.00016948,2]
[398880667,1765961441017,-270.021654,0.00016948,2]
[398880668,1765961441026,-216293.9515382,0.00016948,2]
[398880669,1765961441035,-600.0,0.00016948,2]
[398880670,1765961441044,-35177.2136094,0.00016948,2]
[398880671,1765961441054,-151.0,0.00016948,2]
[398880672,1765961441063,-151.0,0.00016948,2]
[398880673,1765961441072,-151.0,0.00016948,2]
[398880674,1765961441081,-502.323179,0.00016948,2]
[398880675,1765961441091,-151.0,0.00016948,2]
[398880676,1765961441100,-502.323179,0.00016948,2]
[398880677,1765961441109,-502.323179,0.00016948,2]
[398880678,1765961441122,-151.0,0.00016948,2]
[398880679,1765961441131,-151.0,0.00016948,2]
[398880680,1765961441140,-502.323179,0.00016948,2]
[398880681,1765961441149,-502.323179,0.00016948,2]
[398880682,1765961441159,-151.0,0.00016948,2]
[398880683,1765961441168,-205.818786,0.00016948,2]
[398880684,1765961441177,-502.323179,0.00016948,2]
[398880685,1765961441186,-502.323179,0.00016948,2]
[398880686,1765961441195,-502.323179,0.00016948,2]
[398880687,1765961441207,-502.323179,0.00016948,2]
[398880688,1765961441216,-502.323179,0.00016948,2]
[398880689,1765961441226,-502.323179,0.00016948,2]
[398880690,1765961441236,-502.323179,0.00016948,2]
[398880691,1765961441245,-151.0,0.00016948,2]
[398880692,1765961441254,-269.251734,0.00016948,2]
[398880693,1765961441264,-438.364816,0.00016948,2]
[398880694,1765961441273,-438.364816,0.00016948,2]
[398880695,1765961441282,-438.364816,0.00016948,2]
[398880696,1765961441292,-438.364816,0.00016948,2]
[398880697,1765961441301,-438.364816,0.00016948,2]
[398880698,1765961441310,-438.364816,0.00016948,2]
[398880699,1765961441318,-438.364816,0.00016948,2]
[398880700,1765961441327,-438.364812,0.00016948,2]
[398880701,1765961441336,-414.996452,0.00016948,2]
[398880702,1765961441345,-414.996452,0.00016948,2]
[398880703,1765961441354,-414.996452,0.00016948,2]
[398880704,1765961441363,-414.996444,0.00016948,2]
[398880705,1765961441372,-172.545447,0.00016948,2]
[398880706,1765961441381,-172.545447,0.00016948,2]
[398880707,1765961441390,-172.545447,0.00016948,2]
[398880708,1765961441399,-172.545447,0.00016948,2]
[398880709,1765961441408,-500.0,0.00016973,2]
[398880710,1765961441417,-502.93181499,0.00016973,2]
[398880711,1765961441426,-500.0,0.00016973,2]
[398880712,1765961441435,-500.0,0.00016973,2]
[398880713,1765961441444,-500.0,0.00016973,2]
[398880714,1765961441453,-500.71124086,0.00016973,2]
[398880715,1765961441462,-500.0,0.00016973,2]
[398880716,1765961441472,-276.35412541,0.00016973,2]
[398880717,1765961441480,-500.0,0.00016973,2]
[398880718,1765961441489,-341.41992772,0.00016973,2]
[398880719,1765961441503,-500.0,0.00016973,2]
[398880720,1765961441515,-500.0,0.00016973,2]
[398880721,1765961441525,-500.0,0.00016973,2]
[398880722,1765961441533,-476.4698319,0.00016973,2]
[398880723,1765961441543,-500.0,0.00016973,2]
[398880724,1765961441552,-500.79172108,0.00016973,2]
[398880725,1765961441561,-201.55783771,0.00016973,2]
[398880726,1765961441570,-500.0,0.00016973,2]
[398880727,1765961441579,-422.87348386,0.00016973,2]
[398880728,1765961441588,-595.37131296,0.00016974,2]
[398880729,1765961441597,-1234.0,0.00016974,2]
[398880730,1765961441606,-250.0,0.00016981,2]
[398880731,1765961441615,-300.0,0.00016985,2]
[398880732,1765961441624,-619.0,0.00016986,2]
[398880733,1765961441633,-150.0,0.00016986,2]
[398880734,1765961441642,-151.0,0.00016986,2]
[398880735,1765961441652,-151.0,0.00016986,2]
[398880736,1765961441662,-502.323179,0.00016986,2]
[398880737,1765961441671,-151.0,0.00016986,2]
[398880738,1765961441680,-502.323179,0.00016986,2]
[398880739,1765961441689,-502.323179,0.00016986,2]
[398880740,1765961441699,-502.323179,0.00016986,2]
[398880741,1765961441709,-11408.0,0.00016986,2]
[398880742,1765961441718,-108056.19,0.00016986,2]
[398880743,1765961441727,-150.0,0.00016986,2]
[398880744,1765961441736,-150.0,0.00016986,2]
[398880745,1765961441746,-150.0,0.00016986,2]
[398880746,1765961441755,-150.0,0.00016986,2]
[398880747,1765961441764,-324.7542401,0.0001699,2]
[398880748,1765961441773,-324.7542401,0.0001699,2]
[398880749,1765961441782,-500.0,0.00016999,2]
[398880750,1765961441791,-500.0,0.00016999,2]
[398880751,1765961441800,-500.0,0.00016999,2]
[398880752,1765961441810,-500.0,0.00016999,2]
[398880753,1765961441819,-500.0,0.00016999,2]
[398880754,1765961441828,-206.01147421,0.00016999,2]
[398880755,1765961441837,-1000.0,0.00016999,2]
[398880756,1765961441846,-961.3562878,0.00016999,2]
[398880757,1765961441855,-500.0,0.00016999,2]
[398880758,1765961441864,-500.0,0.00016999,2]
[398880759,1765961441873,-500.0,0.00016999,2]
[398880760,1765961441881,-500.0,0.00016999,2]
[398880761,1765961441891,-500.0,0.00016999,2]
[398880762,1765961441900,-500.0,0.00016999,2]
[398880763,1765961441909,-500.0,0.00016999,2]
[398880764,1765961441918,-500.0,0.00016999,2]
[398880765,1765961441927,-500.0,0.00016999,2]
[398880766,1765961441938,-500.0,0.00016999,2]
[398880767,1765961441947,-500.0,0.00016999,2]
[398880768,1765961441956,-500.0,0.00016999,2]
[398880769,1765961441965,-500.0,0.00016999,2]
[398880770,1765961441974,-500.0,0.00016999,2]
[398880771,1765961441983,-500.0,0.00016999,2]
[398880772,1765961441992,-256.46,0.00016999,2]
[398880773,1765961442001,-150.99,0.00017,2]
[398880774,1765961442010,-214147.41779618,0.00017,2]
[398880776,1765961443348,-57682.95017283,0.00017,2]
[398880777,1765961443368,-328.31959918,0.00017,2]
[398880778,1765961443380,-5440.17394747,0.00017,2]
[398880779,1765961443391,-964.0942,0.00017,2]
[398880781,1765961443524,-2900.18651994,0.00017,2]
[398880783,1765961443536,-8632.56350051,0.00017,2]
[398880785,1765961443548,-8947.21879473,0.00017,2]
[398880787,1765961443559,-8943.78386462,0.00017,2]
[398880789,1765961443570,-9077.54866152,0.00017,2]
[398880791,1765961443580,-8943.84023489,0.00017,2]
[398880793,1765961443591,-380.30947352,0.00017,2]
[398880795,1765961443602,-2619.97573875,0.00017,2]
[398880796,1765961443614,-14017.1066969,0.00017,2]
[398880797,1765961443637,-1854.36,0.00017,2]
[398880798,1765961443649,-2521249.77764524,0.00017,2]
[398880799,1765961443658,-1496277.67426511,0.00017,2]
[398880800,1765961443668,-3464151.34889759,0.00017,2]
[398880802,1765961443677,-3500.0,0.00017,2]
[398880804,1765961443687,-2000.0,0.00017,2]
[398880806,1765961443696,-1377.5328948,0.00017,2]
[398880808,1765961443706,-358.50644939,0.00017,2]
[398880810,1765961443716,-250.0,0.00017,2]
[398880811,1765961443725,-151.0,0.00017,2]
[398880812,1765961443735,-151.0,0.00017,2]
[398880813,1765961443745,-151.0,0.00017,2]
[398880814,1765961443754,-502.323179,0.00017,2]
[398880815,1765961443764,-151.0,0.00017,2]
[398880816,1765961443773,-502.323179,0.00017,2]
[398880817,1765961443783,-502.323179,0.00017,2]
[398880818,1765961443792,-502.323187,0.00017,2]
[398880819,1765961443801,-5098.39919,0.00017,2]
[398880820,1765961443810,-362.18898238,0.00017,2]
[398880821,1765961443819,-5000.0,0.0001701,3]
[398880822,1765961443828,-1257.48357959,0.0001701,3]
[398880823,1765961443837,-2500.0,0.0001701,2]
[398880824,1765961443847,-2500.0,0.0001701,2]
[398880825,1765961443856,-2500.0,0.0001701,2]
[398880826,1765961443865,-2500.0,0.0001701,2]
[398880827,1765961443874,-2500.0,0.0001701,2]
[398880828,1765961443883,-300.0,0.0001701,2]
[398880829,1765961443892,-300.0,0.0001701,2]
[398880830,1765961443902,-300.0,0.0001701,2]
[398880831,1765961443911,-300.0,0.0001701,2]
[398880832,1765961443920,-300.0,0.0001701,2]
[398880833,1765961443929,-185.57590641,0.0001701,2]
[398880834,1765961443939,-250.0,0.0001701,2]
[398880835,1765961443948,-160.68,0.00017022,2]
[398880836,1765961443957,-1680.0,0.00017028,2]
[398880837,1765961443966,-252.0,0.00017073,2]
[398880838,1765961443975,-191.0,0.00017131,2]
[398880839,1765961443984,-191.0,0.00017195,2]
[398880840,1765961443993,-1006.0,0.000172,2]
[398880841,1765961444002,-994.82485902,0.00017233,2]
[398880842,1765961444012,-642.94,0.00017247,2]
[398880843,1765961444021,-311.1,0.00017247,2]
[398880844,1765961444030,-619.0,0.0001726,3]
[398880845,1765961444040,-1312.46329634,0.000173,2]
[398880846,1765961444049,-500.0,0.00017318,2]
[398880847,1765961444059,-1217.86,0.0001737,2]
[398880848,1765961444068,-1217.86,0.0001737,2]
[398880849,1765961444078,-1217.86,0.0001737,2]
[398880850,1765961444087,-230.85,0.0001737,2]
[398880851,1765961444096,-23527.7172589,0.00017419,2]
[398880852,1765961444106,-600.0,0.00017496,2]
[398880853,1765961444115,-500.0,0.000175,3]
[398880854,1765961444124,-1000.0,0.00017521,2]
[398880855,1765961444134,-500.0,0.00017521,2]
[398880856,1765961444143,-500.0,0.00017521,2]
[398880857,1765961444152,-500.0,0.00017521,2]
[398880858,1765961444162,-500.0,0.00017521,2]
[398880859,1765961444171,-617.40005154,0.00017522,2]
[398880860,1765961444181,-1234.0,0.00017522,2]
[398880861,1765961444190,-619.0,0.00017534,4]
[398880862,1765961444200,-150.96547858,0.00017545,2]
[398880863,1765961444209,-994.82485902,0.00017567,2]
[398880864,1765961444218,-160.68,0.0001767,2]
[398880865,1765961444227,-403.0,0.000177,5]
[398880866,1765961444236,-1312.46329634,0.000177,2]
[398880867,1765961444245,-900.0,0.00017778,2]
[398880868,1765961444254,-158.04,0.00017796,2]
[398880869,1765961444267,-619.0,0.00017808,5]
[398880870,1765961444277,-3453.0,0.00017811,2]
[398880871,1765961444286,-1326.104,0.00017811,2]
[398880872,1765961444295,-1607.0,0.00017811,2]
[398880873,1765961444304,-612.0,0.00017811,2]
[398880874,1765961444314,-663.522,0.00017811,2]
[398880875,1765961444323,-1261.0,0.00017811,2]
[398880876,1765961444331,-911.0,0.00017811,2]
[398880877,1765961444341,-6524.0,0.00017811,2]
[398880878,1765961444350,-250.0,0.00017811,2]
[398880879,1765961444359,-152.0,0.00017811,2]
[398880880,1765961444368,-563.0,0.00017811,2]
[398880881,1765961444377,-150.0,0.00017811,2]
[398880882,1765961444386,-200.0,0.00017811,2]
[398880883,1765961444395,-200.0,0.00017811,2]
[398880884,1765961444404,-484.0,0.00017828,2]
[398880885,1765961444414,-173.85,0.00017845,2]
[398880886,1765961444423,-266.0,0.00017887,2]
[398880887,1765961444432,-994.82485902,0.000179,2]
[398880888,1765961444441,-5506.36440648,0.000179,2]
[398880889,1765961444450,-168.0,0.00017981,2]
[398880890,1765961444463,-3528.58960874,0.00018,2]
[398880891,1765961444472,-600.0,0.00018044,2]
[398880892,1765961444481,-500.0,0.00018068,2]
[398880893,1765961444490,-640.24385345,0.0001807,2]
[398880894,1765961444499,-1234.0,0.0001807,2]
[398880895,1765961444508,-619.0,0.00018082,6]
[398880896,1765961444518,-1000.0,0.00018082,2]
[398880897,1765961444527,-1312.46329634,0.000181,2]
[398880898,1765961444536,-266.0,0.00018109,2]
[398880899,1765961444545,-168.0,0.00018116,2]
[398880900,1765961444554,-28935.0,0.00018128,2]
[398880901,1765961444564,-150.96547858,0.0001813,2]
[398880902,1765961444573,-266.0,0.00018159,2]
[398880903,1765961444581,-266.0,0.00018166,2]
[398880904,1765961444591,-994.82485902,0.00018233,2]
[398880905,1765961444599,-151.676,0.00018282,2]
[398880906,1765961444609,-264.673,0.00018282,2]
[398880907,1765961444618,-150.318,0.00018282,2]
[398880908,1765961444628,-206.581,0.00018282,2]
[398880909,1765961444637,-163.22,0.00018282,2]
[398880910,1765961444646,-273.368,0.00018282,2]
[398880911,1765961444659,-150.0,0.00018282,2]
[398880912,1765961444668,-152.0,0.00018282,2]
[398880913,1765961444678,-152.096,0.00018282,2]
[398880914,1765961444688,-266.0,0.00018317,2]
[398880915,1765961444697,-160.68,0.00018319,2]
[398880916,1765961444706,-480.71,0.00018353,2]
[398880917,1765961444715,-619.0,0.00018356,7]
[398880918,1765961444725,-500.0,0.00018438,2]
[398880919,1765961444734,-286.90864955,0.00018488,2]
[398880920,1765961444744,-500.0,0.00018488,2]
[398880921,1765961444754,-171.2,0.000185,2]
[398880922,1765961444763,-1312.46329634,0.000185,2]
[398880923,1765961444773,-266.0,0.00018531,2]
[398880924,1765961444782,-587.0,0.00018534,2]
[398880925,1765961444791,-266.0,0.0001854,2]
[398880926,1765961444801,-994.82485902,0.00018567,2]
[398880927,1765961444810,-600.0,0.00018592,2]
[398880928,1765961444820,-1000.0,0.00018598,2]
[398880929,1765961444829,-266.0,0.00018615,2]
[398880930,1765961444838,-592.40327031,0.00018616,2]
[398880931,1765961444847,-322.6107,0.00018616,2]
[398880932,1765961444859,-663.93287602,0.00018618,2]
[398880933,1765961444868,-1234.0,0.00018618,2]
[398880934,1765961444877,-152.0,0.00018629,3]
[398880935,1765961444886,-619.0,0.0001863,8]
[398880936,1765961444895,-266.0,0.00018647,2]
[398880937,1765961444904,-168.0,0.00018698,2]
[398880938,1765961444913,-168.0,0.00018701,2]
[398880939,1765961444923,-150.96547858,0.00018714,2]
[398880940,1765961444932,-2351.0,0.00018722,2]
[398880941,1765961444942,-173.85,0.0001873,2]
[398880942,1765961444951,-158.04,0.00018733,2]
[398880943,1765961444960,-1000.0,0.0001876,2]
[398880944,1765961444969,-569.87602686,0.00018773,2]
[398880945,1765961444978,-150.0,0.00018773,2]
[398880946,1765961444987,-500.0,0.00018773,2]
[398880947,1765961444996,-500.0,0.00018773,2]
[398880948,1765961445007,-500.0,0.00018773,2]
[398880949,1765961445016,-500.0,0.00018773,2]
[398880950,1765961445025,-505.21528967,0.00018773,2]
[398880951,1765961445035,-500.0,0.00018773,2]
[398880952,1765961445044,-505.61497466,0.00018773,2]
[398880953,1765961445054,-500.0,0.00018773,2]
[398880954,1765961445067,-500.0,0.00018773,2]
[398880955,1765961445076,-178.93750453,0.00018773,2]
[398880956,1765961445086,-500.0,0.00018773,2]
[398880957,1765961445096,-500.0,0.00018773,2]
[398880958,1765961445105,-504.94445868,0.00018773,2]
[398880959,1765961445114,-500.0,0.00018773,2]
[398880960,1765961445128,-500.0,0.00018773,2]
[398880961,1765961445137,-500.0,0.00018773,2]
[398880962,1765961445148,-500.0,0.00018773,2]
[398880963,1765961445157,-500.0,0.00018773,2]
[398880964,1765961445168,-500.0,0.00018773,2]
[398880965,1765961445178,-500.0,0.00018773,2]
[398880966,1765961445187,-500.0,0.00018773,2]
[398880967,1765961445196,-500.0,0.00018773,2]
[398880968,1765961445205,-576.83817064,0.00018773,2]
[398880969,1765961445215,-500.0,0.00018773,2]
[398880970,1765961445224,-500.0,0.00018773,2]
[398880971,1765961445233,-500.0,0.00018773,2]
[398880972,1765961445243,-500.0,0.00018773,2]
[398880973,1765961445262,-564.0782395,0.00018773,2]
[398880974,1765961445272,-516.08920416,0.00018773,2]
[398880975,1765961445282,-500.0,0.00018773,2]
[398880976,1765961445291,-2671.5036419,0.00018824,2]
[398880977,1765961445300,-171.07,0.0001885,2]
[398880978,1765961445309,-266.0,0.00018857,2]
[398880979,1765961445318,-3063.0523038,0.0001886,2]
[398880980,1765961445328,-8014.5109255,0.0001886,2]
[398880981,1765961445337,-1600.0,0.00018873,2]
[398880982,1765961445346,-266.0,0.00018876,2]
[398880983,1765961445355,-248.3672316,0.000189,3]
[398880984,1765961445364,-994.82485902,0.000189,2]
[398880985,1765961445374,-839.79147603,0.000189,2]
[398880986,1765961445383,-5506.36440648,0.000189,2]
[398880987,1765961445392,-1312.46329634,0.000189,2]
[398880988,1765961445402,-619.0,0.00018904,9]
[398880989,1765961445411,-3457.53642493,0.00018904,2]
[398880990,1765961445421,-1000.0,0.00018951,2]
[398880991,1765961445430,-150.0,0.00018973,2]
[398880992,1765961445439,-163.30713897,0.00018973,2]
[398880993,1765961445448,-152.0,0.0001898,4]
[398880994,1765961445458,-500.0,0.0001899,2]
[398880995,1765961445467,-500.0,0.0001899,2]
[398880996,1765961445476,-500.0,0.0001899,2]
[398880997,1765961445486,-870.0,0.0001899,2]
[398880998,1765961445495,-200.83834821,0.0001899,5]
[398880999,1765961445504,-499.99999999,0.00018999,2]
[398881000,1765961445514,-500.0,0.00018999,2]
[398881001,1765961445523,-500.0,0.00018999,2]
[398881002,1765961445533,-14219.94442488,0.00018999,2]
[398881003,1765961445543,-27578.57014795,0.00019,2]
[398881004,1765961445559,-72731.45497285,0.00019,2]
[398881005,1765961445571,-509.41729664,0.00019,2]
[398881046,1765961446354,-4799.0,0.00017811,2]
[398881048,1765961446363,-483523.18503892,0.00019,2]
[398881050,1765961446376,-172061.02399914,0.00019,2]
[398881055,1765961446806,-688.7664474,0.00017811,2]
[398881056,1765961446815,-179.25322469,0.00017887,2]
[398881057,1765961446824,-1429.6212917,0.00019,2]
[398881058,1765961446835,-1152.0,0.00019,2]
[398881059,1765961446894,-889.25411895,0.00019,2]
[398881060,1765961446909,-279.67986688,0.00019,2]
[398881116,1765962312062,51932.88105281,0.00023,120]
[398881117,1765962331984,999.0,0.00015189,3]
[398881133,1765962484075,594.0187384,7.594e-05,2]
[398881134,1765962484098,1000.67925213,7.594e-05,2]
[398881135,1765962484121,1000.67925213,7.594e-05,2]
[398881136,1765962484145,622.85275734,7.594e-05,2]
[398881137,1765962484291,377.82649479,7.994e-05,2]
[398881138,1765962484313,1000.67925213,7.994e-05,2]
[398881139,1765962484334,1000.67925213,7.994e-05,2]
[398881140,1765962484355,839.04500095,7.994e-05,2]
[398881141,1765962484507,161.63425118,8.394e-05,2]
[398881142,1765962484528,1000.67925213,8.394e-05,2]
[398881143,1765962484549,1000.67925213,8.394e-05,2]
[398881144,1765962484569,1000.67925213,8.394e-05,2]
[398881145,1765962488058,-54.55799243,8.394e-05,2]
[398881146,1765962488080,-378.80770888,8.794e-05,2]
[398881148,1765962490609,-201.12717181,8.794e-05,2]
[398881149,1765962495899,-267.24951496,8.794e-05,2]
[398881150,1765962497193,-2371.04560435,8.794e-05,2]
[398881151,1765962497220,-2039.6887913,9.193e-05,2]
[398881152,1765962498425,-321.68688518,9.193e-05,2]
[398881153,1765962500071,-856.85432352,9.193e-05,2]
[398881154,1765962500099,-3218.23,9.593e-05,2]
[398881155,1765962500935,-3218.23,9.993e-05,2]
[398881156,1765962500964,-345.32,0.00010392,2]
[398881157,1765962501086,-193.49275747,0.00010392,2]
[398881158,1765962501768,-2679.41724253,0.00010392,2]
[398881159,1765962510207,-300.0,0.00010792,2]
[398881160,1765962511731,-500.0,0.00010792,2]
[398881161,1765962512372,-2418.23,0.00010792,2]
[398881162,1765962513267,-298.40884533,0.00011192,2]
[398881163,1765962514733,-591.0,0.00011192,2]
[398881164,1765962517570,-172.11864538,0.00011192,2]
[398881166,1765962518996,-327.16,0.00011192,2]
[398881167,1765962520569,-789.20556293,0.00011192,2]
[398881168,1765962531051,-1040.33694636,0.00011192,2]
[398881173,1765962542722,-3218.23,0.00011591,2]
[398881174,1765962617979,297.88460634,0.00023,120]
[398881175,1765962618005,153.0,0.00023,120]
[398881176,1765962618338,164.0,0.00023,120]
[398881177,1765962618527,153.0,0.00023,120]
[398881178,1765962619072,156.67690804,0.00023,120]
[398881179,1765962619388,163.0,0.00023,120]
[398881180,1765962619635,153.0,0.00023,120]
[398881181,1765962619866,162.2803419,0.00023,120]
[398881182,1765962620158,153.0,0.00023,120]
[398881183,1765962621722,163.0,0.00023,120]
[398881184,1765962623330,153.0,0.00023,120]
[398881185,1765962623889,153.71683699,0.00023,120]
[398881186,1765962624415,153.0,0.00023,120]
[398881187,1765962624563,160.52509989,0.00023,120]
[398881188,1765962624949,153.0,0.00023,120]
[398881189,1765962625486,153.0,0.00023,120]
[398881190,1765962626054,153.0,0.00023,120]
[398881191,1765962626625,153.0,0.00023,120]
[398881192,1765962627167,153.0,0.00023,120]
[398881193,1765962627960,153.0,0.00023,120]
[398881194,1765962628643,153.0,0.00023,120]
[398881195,1765962629174,153.0,0.00023,120]
[398881196,1765962629681,153.0,0.00023,120]
[398881197,1765962630207,153.0,0.00023,120]
[398881231,1765962633236,-626.31575954,0.00011991,2]
[398881233,1765962633247,-822.10562034,0.00011991,2]
[398881234,1765962633264,-1769.80862012,0.00011991,2]
[398881236,1765962633274,-191.04828342,0.00012291,2]
[398881237,1765962633286,-571.2445571,0.00012391,2]
[398881238,1765962633297,-1001.89552022,0.00012391,2]
[398881240,1765962633312,-1091.80232096,0.00012391,2]
[398881424,1765962638243,-553.28760172,0.00012391,2]
[398881425,1765962638252,-300.0,0.0001279,2]
[398881427,1765962638262,-300.0,0.0001279,2]
[398881428,1765962638271,-1200.0,0.0001279,2]
[398881429,1765962638281,-3218.23,0.00012791,2]
[398881431,1765962638290,-3218.23,0.0001319,2]
[398881432,1765962638300,-250.0,0.0001319,2]
[398881434,1765962638310,-195.0,0.0001319,2]
[398881435,1765962638320,-3218.23,0.0001359,2]
[398881436,1765962638329,-3218.23,0.0001399,2]
[398881438,1765962638338,-420.0,0.00014029,2]
[398881439,1765962638347,-420.0,0.00014029,2]
[398881440,1765962638356,-1680.0,0.00014068,2]
[398881442,1765962638367,-1017.83,0.00014331,2]
[398881443,1765962638376,-3218.23,0.00014389,2]
[398881444,1765962638386,-150.0,0.00014453,2]
[398881446,1765962638395,-2933.64,0.00014567,2]
[398881447,1765962638405,-3218.23,0.00014789,2]
[398881448,1765962638414,-3218.23,0.00015189,2]
[398881450,1765962638424,-300.0,0.00015289,2]
[398881451,1765962638434,-500.0,0.00015289,2]
[398881453,1765962638444,-278.33302053,0.00015289,2]
[398881454,1765962638453,-500.0,0.00015289,2]
[398881455,1765962638462,-500.0,0.00015289,2]
[398881457,1765962638472,-214.38107329,0.00015289,2]
[398881458,1765962638481,-307.44971565,0.00015289,2]
[398881459,1765962638491,-23235.1073,0.0001529,2]
[398881461,1765962638500,-430009.0557,0.0001529,2]
[398881462,1765962638511,-11334.86904559,0.00015317,2]
[398881464,1765962638520,-8729.46664327,0.00015317,2]
[398881465,1765962638530,-607.19,0.00015381,2]
[398881466,1765962638539,-200.0,0.00015381,2]
[398881468,1765962638548,-500.0,0.00015381,2]
[398881469,1765962638558,-200.0,0.00015381,2]
[398881471,1765962638567,-500.0,0.00015381,2]
[398881472,1765962638576,-500.0,0.00015381,2]
[398881473,1765962638585,-500.0,0.00015381,2]
[398881475,1765962638595,-500.0,0.00015381,2]
[398881476,1765962638604,-500.0,0.00015381,2]
[398881477,1765962638613,-500.0,0.00015381,2]
[398881479,1765962638622,-151.0,0.00015381,2]
[398881480,1765962638631,-500.0,0.00015381,2]
[398881482,1765962638641,-151.0,0.00015381,2]
[398881483,1765962638650,-151.0,0.00015381,2]
[398881484,1765962638660,-151.0,0.00015381,2]
[398881486,1765962638669,-151.0,0.00015381,2]
[398881487,1765962638678,-151.0,0.00015381,2]
[398881488,1765962638688,-151.0,0.00015381,2]
[398881490,1765962638697,-151.0,0.00015381,2]
[398881491,1765962638706,-151.0,0.00015381,2]
[398881492,1765962638715,-151.0,0.00015381,2]
[398881494,1765962638724,-151.0,0.00015381,2]
[398881495,1765962638734,-587.0,0.00015388,2]
[398881497,1765962638743,-587.0,0.00015388,2]
[398881498,1765962638752,-151.06,0.00015389,2]
[398881499,1765962638761,-150.03,0.00015389,2]
[398881501,1765962638770,-500.0,0.0001539,2]
[398881502,1765962638779,-468.97910059,0.0001539,2]
[398881503,1765962638788,-500.0,0.0001539,2]
[398881505,1765962638797,-500.0,0.0001539,2]
[398881506,1765962638806,-500.0,0.0001539,2]
[398881507,1765962638815,-500.0,0.0001539,2]
[398881509,1765962638827,-503.9543882,0.0001539,2]
[398881510,1765962638837,-500.0,0.0001539,2]
[398881512,1765962638846,-500.0,0.0001539,2]
[398881513,1765962638860,-514.23721699,0.0001539,2]
[398881514,1765962638870,-500.0,0.0001539,2]
[398881516,1765962638880,-1108.84,0.00015417,2]
[398881517,1765962638890,-2351.0,0.00015475,2]
[398881518,1765962638899,-500.0,0.0001549,2]
[398881520,1765962638910,-500.0,0.0001549,2]
[398881521,1765962638919,-500.0,0.0001549,2]
[398881523,1765962638928,-6957.06,0.00015564,2]
[398881524,1765962638937,-1232.86,0.00015564,2]
[398881525,1765962638947,-1852.42,0.00015617,2]
[398881527,1765962638957,-166.66,0.00015645,2]
[398881528,1765962638967,-607.19,0.00015655,2]
[398881529,1765962638976,-11334.86904554,0.00015715,2]
[398881531,1765962638986,-8729.4666432,0.00015715,2]
[398881532,1765962638995,-78743.20233266,0.00015791,2]
[398881534,1765962639004,-250.0,0.00015844,2]
[398881535,1765962639013,-200.0,0.00015866,2]
[398881536,1765962639023,-5702.78,0.00015866,2]
[398881538,1765962639033,-560.3430041,0.000159,2]
[398881539,1765962639042,-560.34300408,0.000159,2]
[398881541,1765962639054,-560.34300408,0.000159,2]
[398881542,1765962639064,-560.34300408,0.000159,2]
[398881543,1765962639074,-560.34300408,0.000159,2]
[398881545,1765962639084,-560.34300408,0.000159,2]